Workbook

Sheet Novembre_2017
S1: Masquer au printemps >10° | Y1: Masqué R à V | CQ1: http://www.meteociel.fr/climatologie/villes.php?code=7306&mois=10&annee=2016 | CX1: http://www.ephemeride.com/calendrier/solaire/19/horaires-du-soleil.html
BM3: =$C$5 -> Novembre_2017 | BP3: Hauteur de pluie en mm | BT3: Temps de précipitations par demi-journées | CD3: =$C$5 -> Novembre_2017 | CG3: Soleil | CI3: Rendement | CM3: Gain | CQ3: http://info.sio2.be/kpz/3/1.php | CY3: T° mini | DA3: T¨maxi | DC3: Vent maxi
C5: Novembre_2017 | F5: Pression (hPa) | P5: =C5 -> Novembre_2017 | S5: Températures (°C) | AG5: =C5 -> Novembre_2017 | AJ5: Vitesse du vent en km/h | AX5: =$C$5 -> Novembre_2017 | BA5: Hygrométrie en % | BM5: Valeurs du mois | BP5: =SUM($BP11:$BP73) -> 6.818 | BR5: =SUM($BV11:$BX73) -> 02:27:00 | BT5: =SUM(BT11:BT73) -> 0 | BV5: =SUM(BV11:BV73) -> 0 | BX5: =SUM(BX11:BX73) -> 0.1020833333 | BZ5: =SUM(BZ11:BZ73) -> 0.02916666667 | CD5: Valeur du mois | CG5: =SUM(CG11:CG73) -> 2.241666667 | CI5: =SUM(CI11:CI73) -> 54.1 | CM5: =SUM(CM11:CM73) -> 19.14599
C7: Valeur du mois | F7: =MIN($F$11:$G$73) -> 1004 | H7: =VLOOKUP($F$7,$F11:$Q$73,12,0) -> 2017-11-03 | J7: =MAX($J$11:$J$73) -> 1024 | L7: =VLOOKUP($J$7,$J$11:$Q$73,8,0) -> 2017-11-08 | P7: Valeurs du mois | S7: =MIN($S$11:$S$73) -> -1.5 | U7: =VLOOKUP($S$7,$S$11:$AH$73,16,0) -> 2017-11-07 | W7: =MIN($W$11:$W$73) -> -1.5 | Y7: =VLOOKUP($W$7,$W$11:$AH$73,12,0) -> 2017-11-07 | AA7: =MAX($AA$11:$AA$73) -> 21 | AC7: =VLOOKUP($AA$7,$AA$11:$AH$73,8,0) -> 2017-11-02 | AG7: Valeurs du mois | AJ7: =MAX($AJ$11:$AJ$73) -> 32.4 | AL7: =VLOOKUP($AJ$7,$AJ$11:$AY$73,16,0) -> 2017-11-07 | AN7: =MAX($AN$11:$AN$73) -> 7.804166667 | AT7: Vent <1.1 km/h | AX7: Valeurs du mois | BA7: Mini du jour | BE7: Maxi du mois | BI7: Moyenne | BM7: Jour maxi | BP7: =VLOOKUP($BP$9,$BP$11:$CE$73,16,0) -> 2017-11-04 | BR7: =VLOOKUP($BR$9,$BR$11:$CE$73,14,0) ->  | BT7: Pluie AM | BV7: Pluie AP | BX7: Pluie AM | BZ7: Pluie AP | CD7: Jour maxi | CG7: =VLOOKUP($CG$9,$CG$11:$CQ$73,11,0) -> 2017-11-06 | CI7: Panneaux | CM7: Voltaïques
C9: Date | F9: Mini | H9: =VLOOKUP($F$7,$F11:$H$73,3,0) -> 07:12:00 | J9: Maxi | L9: =VLOOKUP($J$7,$J11:$L$73,3,0) -> 00:00:00 | P9: Date | S9: Ressentie | U9: =VLOOKUP(S7,S11:U73,3,0) -> 07:41:00 | W9: Mini | Y9: =VLOOKUP(W7,W11:Y73,3,0) -> 07:41:00 | AA9: Maxi | AC9: =VLOOKUP(AA7,AA11:AC73,3,0) -> 15:12:00 | AG9: Date | AJ9: Maxi | AL9: =VLOOKUP(AJ7,AJ11:AL73,3,0) -> 23:51:00 | AN9: Moyenne | AP9: Direction dominante | AT9: =SUM(AT11:AT61) -> 5.654166667 | AX9: Date | BA9: =MIN(BA11:BA73) -> 31 | BC9: =VLOOKUP($BA$9,$BA$11:$BN$73,14,0) -> 2017-11-05 | BE9: =MAX(BE11:BE73) -> 90 | BG9: =VLOOKUP($BE$9,$BE$11:$BN$73,10,0) -> 2017-11-04 | BI9: =MAX(BI11:BI73) -> 84.47972028 | BM9: Date | BP9: =MAX($BP$11:$BP$73) -> 4.318 | BR9: =MAX($BV$11:BX73) -> 0.09166666667 | BT9: de 0 à 7h | BV9: de 7 à 12h | BX9: de 12 à 19h | BZ9: de 19h à 23h | CD9: Date | CG9: =MAX($CG$11:$CG$73) -> 0.3291666667 | CI9: Voltaïques | CM9: =11511.64-SUM(CM11:CM73) -> 11492.49401
C11: =PROPER(TEXT(D11,"JJJJ")) -> Mercredi | D11: 2017-11-01 | F11: 1011 | H11: 17:03:00 | J11: 1017 | L11: 00:00:00 | P11: =$C11 -> Mercredi | Q11: =$D11 -> 2017-11-01 | S11: 4.4 | U11: 07:40:00 | W11: 4.4 | Y11: 07:40:00 | AA11: 18.7 | AC11: 15:14:00 | AG11: =$C11 -> Mercredi | AH11: =$D11 -> 2017-11-01 | AJ11: 23.2 | AL11: 11:17:00 | AN11: 4.328333333 | AR11: O | AT11: 09:49:00 | AX11: =$C11 -> Mercredi | AY11: =$D11 -> 2017-11-01 | BA11: 42 | BC11: 14:50:00 | BE11: 71 | BG11: 23:53:00 | BI11: 55.36923077 | BM11: =$C11 -> Mercredi | BN11: =$D11 -> 2017-11-01 | BP11: 0 | BR11: 00:00:00 | BT11: 00:00:00 | BV11: 00:00:00 | BX11: 00:00:00 | BZ11: 00:00:00 | CD11: =$C11 -> Mercredi | CE11: =$D11 -> 2017-11-01 | CG11: 04:30:00 | CI11: 5.5 | CM11: =IF($CI11=0,"",$CI11*0.3539) -> 1.94645 | CQ11: =D11 -> 2017-11-01 | CR11: =$C11 -> Mercredi
C13: =PROPER(TEXT(D13,"JJJJ")) -> Jeudi | D13: =$D11+1 -> 2017-11-02 | F13: 1010 | H13: 14:48:00 | J13: 1014 | L13: 00:00:00 | P13: =$C13 -> Jeudi | Q13: =$D13 -> 2017-11-02 | S13: 9.7 | U13: 08:14:00 | W13: 9.7 | Y13: 08:14:00 | AA13: 21 | AC13: 15:12:00 | AG13: =$C13 -> Jeudi | AH13: =$D13 -> 2017-11-02 | AJ13: 17.6 | AL13: 10:50:00 | AN13: 2.79 | AR13: O | AT13: 13:28:00 | AX13: =$C13 -> Jeudi | AY13: =$D13 -> 2017-11-02 | BA13: 44 | BC13: 15:58:00 | BE13: 86 | BG13: 09:40:00 | BI13: 68.74633431 | BM13: =$C13 -> Jeudi | BN13: =$D13 -> 2017-11-02 | BP13: 0 | BR13: 00:00:00 | BT13: 00:00:00 | BV13: 00:00:00 | BX13: 00:00:00 | BZ13: 00:00:00 | CD13: =$C13 -> Jeudi | CE13: =$D13 -> 2017-11-02 | CG13: 06:12:00 | CI13: 5.9 | CM13: =IF($CI13=0,"",$CI13*0.3539) -> 2.08801 | CQ13: =D13 -> 2017-11-02 | CR13: =$C13 -> Jeudi
C15: =PROPER(TEXT(D15,"JJJJ")) -> Vendredi | D15: =$D13+1 -> 2017-11-03 | F15: 1004 | H15: 07:12:00 | J15: 1011 | L15: 00:03:00 | P15: =$C15 -> Vendredi | Q15: =$D15 -> 2017-11-03 | S15: 10.9 | U15: 00:37:00 | W15: 10.9 | Y15: 00:37:00 | AA15: 15.8 | AC15: 07:21:00 | AG15: =$C15 -> Vendredi | AH15: =$D15 -> 2017-11-03 | AJ15: 16.8 | AL15: 04:33:00 | AN15: 3.431111111 | AR15: SSE | AT15: 12:05:00 | AX15: =$C15 -> Vendredi | AY15: =$D15 -> 2017-11-03 | BA15: 59 | BC15: 00:20:00 | BE15: 82 | BG15: 01:46:00 | BI15: 71.28228228 | BM15: =$C15 -> Vendredi | BN15: =$D15 -> 2017-11-03 | BP15: 0 | BR15: 00:00:00 | BT15: 00:00:00 | BV15: 00:00:00 | BX15: 00:00:00 | BZ15: 00:00:00 | CD15: =$C15 -> Vendredi | CE15: =$D15 -> 2017-11-03 | CG15: 00:00:00 | CI15: 2 | CM15: =IF($CI15=0,"",$CI15*0.3539) -> 0.7078 | CQ15: =D15 -> 2017-11-03 | CR15: =$C15 -> Vendredi
C17: =PROPER(TEXT(D17,"JJJJ")) -> Samedi | D17: =$D15+1 -> 2017-11-04 | F17: 1004 | H17: 03:18:00 | J17: 1010 | L17: 22:33:00 | P17: =$C17 -> Samedi | Q17: =$D17 -> 2017-11-04 | S17: 9.8 | U17: 23:52:00 | W17: 9.8 | Y17: 23:52:00 | AA17: 17.8 | AC17: 11:43:00 | AG17: =$C17 -> Samedi | AH17: =$D17 -> 2017-11-04 | AJ17: 22.8 | AL17: 20:39:00 | AN17: 2.583055556 | AR17: OSO | AT17: 13:25:00 | AX17: =$C17 -> Samedi | AY17: =$D17 -> 2017-11-04 | BA17: 63 | BC17: 16:04:00 | BE17: 90 | BG17: 10:09:00 | BI17: 77.14965035 | BM17: =$C17 -> Samedi | BN17: =$D17 -> 2017-11-04 | BP17: 4.318 | BR17: 00:57:00 | BT17: 00:00:00 | BV17: 00:00:00 | BX17: 00:15:00 | BZ17: 00:42:00 | CD17: =$C17 -> Samedi | CE17: =$D17 -> 2017-11-04 | CG17: 06:00:00 | CI17: 3.9 | CM17: =IF($CI17=0,"",$CI17*0.3539) -> 1.38021 | CQ17: =D17 -> 2017-11-04 | CR17: =$C17 -> Samedi
C19: =PROPER(TEXT(D19,"JJJJ")) -> Dimanche | D19: =$D17+1 -> 2017-11-05 | F19: 1009 | H19: 00:00:00 | J19: 1020 | L19: 22:03:00 | P19: =$C19 -> Dimanche | Q19: =$D19 -> 2017-11-05 | S19: 4.3 | U19: 08:03:00 | W19: 4.3 | Y19: 08:03:00 | AA19: 12.8 | AC19: 12:21:00 | AG19: =$C19 -> Dimanche | AH19: =$D19 -> 2017-11-05 | AJ19: 30.8 | AL19: 12:26:00 | AN19: 4.751111111 | AR19: OSO | AT19: 08:13:00 | AX19: =$C19 -> Dimanche | AY19: =$D19 -> 2017-11-05 | BA19: 31 | BC19: 15:18:00 | BE19: 84 | BG19: 09:50:00 | BI19: 58.32867133 | BM19: =$C19 -> Dimanche | BN19: =$D19 -> 2017-11-05 | BP19: 0 | BR19: 00:00:00 | BT19: 00:00:00 | BV19: 00:00:00 | BX19: 00:00:00 | BZ19: 00:00:00 | CD19: =$C19 -> Dimanche | CE19: =$D19 -> 2017-11-05 | CG19: 06:42:00 | CI19: 6 | CM19: =IF($CI19=0,"",$CI19*0.3539) -> 2.1234 | CQ19: =D19 -> 2017-11-05 | CR19: =$C19 -> Dimanche
C21: =PROPER(TEXT(D21,"JJJJ")) -> Lundi | D21: =$D19+1 -> 2017-11-06 | F21: 1018 | H21: 00:00:00 | J21: 1023 | L21: 11:18:00 | P21: =$C21 -> Lundi | Q21: =$D21 -> 2017-11-06 | S21: 1.3 | U21: 23:56:00 | W21: 1.3 | Y21: 23:56:00 | AA21: 12.6 | AC21: 14:18:00 | AG21: =$C21 -> Lundi | AH21: =$D21 -> 2017-11-06 | AJ21: 14.4 | AL21: 13:30:00 | AN21: 2.551944444 | AR21: NNO | AT21: 12:59:00 | AX21: =$C21 -> Lundi | AY21: =$D21 -> 2017-11-06 | BA21: 35 | BC21: 16:47:00 | BE21: 78 | BG21: 09:18:00 | BI21: 57.6013986 | BM21: =$C21 -> Lundi | BN21: =$D21 -> 2017-11-06 | BP21: 0 | BR21: 00:00:00 | BT21: 00:00:00 | BV21: 00:00:00 | BX21: 00:00:00 | BZ21: 00:00:00 | CD21: =$C21 -> Lundi | CE21: =$D21 -> 2017-11-06 | CG21: 07:54:00 | CI21: 5.7 | CM21: =IF($CI21=0,"",$CI21*0.3539) -> 2.01723 | CQ21: =D21 -> 2017-11-06 | CR21: =$C21 -> Lundi
C23: =PROPER(TEXT(D23,"JJJJ")) -> Mardi | D23: =$D21+1 -> 2017-11-07 | F23: 1010 | H23: 21:33:00 | J23: 1021 | L23: 00:18:00 | P23: =$C23 -> Mardi | Q23: =$D23 -> 2017-11-07 | S23: -1.5 | U23: 07:41:00 | W23: -1.5 | Y23: 07:41:00 | AA23: 9.7 | AC23: 15:44:00 | AG23: =$C23 -> Mardi | AH23: =$D23 -> 2017-11-07 | AJ23: 32.4 | AL23: 23:51:00 | AN23: 4.126111111 | AR23: SSE | AT23: 10:37:00 | AX23: =$C23 -> Mardi | AY23: =$D23 -> 2017-11-07 | BA23: 49 | BC23: 15:48:00 | BE23: 90 | BG23: 23:24:00 | BI23: 62.34055944 | BM23: =$C23 -> Mardi | BN23: =$D23 -> 2017-11-07 | BP23: 0 | BR23: 00:00:00 | BT23: 00:00:00 | BV23: 00:00:00 | BX23: 00:00:00 | BZ23: 00:00:00 | CD23: =$C23 -> Mardi | CE23: =$D23 -> 2017-11-07 | CG23: 00:42:00 | CI23: 2.3 | CM23: =IF($CI23=0,"",$CI23*0.3539) -> 0.81397 | CQ23: =D23 -> 2017-11-07 | CR23: =$C23 -> Mardi
C25: =PROPER(TEXT(D25,"JJJJ")) -> Mercredi | D25: =$D23+1 -> 2017-11-08 | F25: 1018 | H25: 16:34:00 | J25: 1024 | L25: 00:00:00 | P25: =$C25 -> Mercredi | Q25: =$D25 -> 2017-11-08 | S25: 6.5 | U25: 08:03:00 | W25: 6.5 | Y25: 08:03:00 | AA25: 18.5 | AC25: 16:27:00 | AG25: =$C25 -> Mercredi | AH25: =$D25 -> 2017-11-08 | AJ25: 3.8 | AL25: 16:38:00 | AN25: 0.5216666667 | AR25: N | AT25: 17:32:00 | AX25: =$C25 -> Mercredi | AY25: =$D25 -> 2017-11-08 | BA25: 56 | BC25: 16:03:00 | BE25: 72 | BG25: 10:01:00 | BI25: 64.94965035 | BM25: =$C25 -> Mercredi | BN25: =$D25 -> 2017-11-08 | BP25: 0 | BR25: 00:00:00 | BT25: 00:00:00 | BV25: 00:00:00 | BX25: 00:00:00 | BZ25: 00:00:00 | CD25: =$C25 -> Mercredi | CE25: =$D25 -> 2017-11-08 | CG25: 00:12:00 | CI25: 3.5 | CM25: =IF($CI25=0,"",$CI25*0.3539) -> 1.23865 | CQ25: =D25 -> 2017-11-08 | CR25: =$C25 -> Mercredi
C27: =PROPER(TEXT(D27,"JJJJ")) -> Jeudi | D27: =$D25+1 -> 2017-11-09 | F27: 1020 | H27: 04:33:00 | J27: 1024 | L27: 14:33:00 | P27: =$C27 -> Jeudi | Q27: =$D27 -> 2017-11-09 | S27: 4.6 | U27: 08:13:00 | W27: 4.6 | Y27: 08:13:00 | AA27: 12.4 | AC27: 14:14:00 | AG27: =$C27 -> Jeudi | AH27: =$D27 -> 2017-11-09 | AJ27: 3.4 | AL27: 05:23:00 | AN27: 1.015277778 | AR27: ONO | AT27: 10:23:00 | AX27: =$C27 -> Jeudi | AY27: =$D27 -> 2017-11-09 | BA27: 57 | BC27: 15:04:00 | BE27: 76 | BG27: 23:45:00 | BI27: 66.92517483 | BM27: =$C27 -> Jeudi | BN27: =$D27 -> 2017-11-09 | BP27: 0 | BR27: 00:00:00 | BT27: 00:00:00 | BV27: 00:00:00 | BX27: 00:00:00 | BZ27: 00:00:00 | CD27: =$C27 -> Jeudi | CE27: =$D27 -> 2017-11-09 | CG27: 05:30:00 | CI27: 5.9 | CM27: =IF($CI27=0,"",$CI27*0.3539) -> 2.08801 | CQ27: =D27 -> 2017-11-09 | CR27: =$C27 -> Jeudi
C29: =PROPER(TEXT(D29,"JJJJ")) -> Vendredi | D29: =$D27+1 -> 2017-11-10 | F29: 1021 | H29: 04:18:00 | J29: 1024 | L29: 09:32:00 | P29: =$C29 -> Vendredi | Q29: =$D29 -> 2017-11-10 | S29: 8.8 | U29: 06:53:00 | W29: 8.8 | Y29: 06:53:00 | AA29: 14.1 | AC29: 14:32:00 | AG29: =$C29 -> Vendredi | AH29: =$D29 -> 2017-11-10 | AJ29: 6.7 | AL29: 14:54:00 | AN29: 0.7376388889 | AR29: SO | AT29: 15:09:00 | AX29: =$C29 -> Vendredi | AY29: =$D29 -> 2017-11-10 | BA29: 76 | BC29: 00:00:00 | BE29: 83 | BG29: 08:56:00 | BI29: 79.8020979 | BM29: =$C29 -> Vendredi | BN29: =$D29 -> 2017-11-10 | BP29: 0 | BR29: 00:00:00 | BT29: 00:00:00 | BV29: 00:00:00 | BX29: 00:00:00 | BZ29: 00:00:00 | CD29: =$C29 -> Vendredi | CE29: =$D29 -> 2017-11-10 | CG29: 00:18:00 | CI29: 2.4 | CM29: =IF($CI29=0,"",$CI29*0.3539) -> 0.84936 | CQ29: =D29 -> 2017-11-10 | CR29: =$C29 -> Vendredi
C31: =PROPER(TEXT(D31,"JJJJ")) -> Samedi | D31: =$D29+1 -> 2017-11-11 | F31: 1014 | H31: 15:17:00 | J31: 1023 | L31: 00:00:00 | P31: =$C31 -> Samedi | Q31: =$D31 -> 2017-11-11 | S31: 9 | U31: 03:47:00 | W31: 9 | Y31: 03:47:00 | AA31: 14.3 | AC31: 13:25:00 | AG31: =$C31 -> Samedi | AH31: =$D31 -> 2017-11-11 | AJ31: 23.6 | AL31: 16:17:00 | AN31: 5.668888889 | AR31: OSO | AT31: 05:28:00 | AX31: =$C31 -> Samedi | AY31: =$D31 -> 2017-11-11 | BA31: 81 | BC31: 03:13:00 | BE31: 87 | BG31: 06:52:00 | BI31: 84.47972028 | BM31: =$C31 -> Samedi | BN31: =$D31 -> 2017-11-11 | BP31: 2.5 | BR31: 00:00:00 | BT31: 00:00:00 | BV31: 00:00:00 | BX31: 02:12:00 | BZ31: 00:00:00 | CD31: =$C31 -> Samedi | CE31: =$D31 -> 2017-11-11 | CG31: 00:00:00 | CI31: 1.4 | CM31: =IF($CI31=0,"",$CI31*0.3539) -> 0.49546 | CQ31: =D31 -> 2017-11-11 | CR31: =$C31 -> Samedi
C33: =PROPER(TEXT(D33,"JJJJ")) -> Dimanche | D33: =$D31+1 -> 2017-11-12 | F33: 1008 | H33: 12:17:00 | J33: 1017 | L33: 22:32:00 | P33: =$C33 -> Dimanche | Q33: =$D33 -> 2017-11-12 | S33: 6.7 | U33: 23:57:00 | W33: 6.7 | Y33: 23:57:00 | AA33: 16.5 | AC33: 13:29:00 | AG33: =$C33 -> Dimanche | AH33: =$D33 -> 2017-11-12 | AJ33: 28.8 | AL33: 15:36:00 | AN33: 7.804166667 | AR33: ONO | AT33: 00:12:00 | AX33: =$C33 -> Dimanche | AY33: =$D33 -> 2017-11-12 | BA33: 62 | BC33: 18:17:00 | BE33: 87 | BG33: 00:38:00 | BI33: 78.65244755 | BM33: =$C33 -> Dimanche | BN33: =$D33 -> 2017-11-12 | BP33: 0 | BR33: 00:00:00 | BT33: 00:00:00 | BV33: 00:00:00 | BX33: 00:00:00 | BZ33: 00:00:00 | CD33: =$C33 -> Dimanche | CE33: =$D33 -> 2017-11-12 | CG33: 01:12:00 | CI33: 3.3 | CM33: =IF($CI33=0,"",$CI33*0.3539) -> 1.16787 | CQ33: =D33 -> 2017-11-12 | CR33: =$C33 -> Dimanche
C35: =PROPER(TEXT(D35,"JJJJ")) -> Lundi | D35: =$D33+1 -> 2017-11-13 | F35: 1016 | H35: 00:00:00 | J35: 1024 | L35: 20:47:00 | P35: =$C35 -> Lundi | Q35: =$D35 -> 2017-11-13 | S35: 3.1 | U35: 23:39:00 | W35: 3.1 | Y35: 23:39:00 | AA35: 10.5 | AC35: 14:29:00 | AG35: =$C35 -> Lundi | AH35: =$D35 -> 2017-11-13 | AJ35: 18.8 | AL35: 15:18:00 | AN35: 4.3075 | AR35: ONO | AT35: 06:22:00 | AX35: =$C35 -> Lundi | AY35: =$D35 -> 2017-11-13 | BA35: 59 | BC35: 16:20:00 | BE35: 73 | BG35: 02:58:00 | BI35: 68.53846154 | BM35: =$C35 -> Lundi | BN35: =$D35 -> 2017-11-13 | BP35: 0 | BR35: 00:00:00 | BT35: 00:00:00 | BV35: 00:00:00 | BX35: 00:00:00 | BZ35: 00:00:00 | CD35: =$C35 -> Lundi | CE35: =$D35 -> 2017-11-13 | CG35: 06:54:00 | CI35: 6.3 | CM35: =IF($CI35=0,"",$CI35*0.3539) -> 2.22957 | CQ35: =D35 -> 2017-11-13 | CR35: =$C35 -> Lundi
C37: =PROPER(TEXT(D37,"JJJJ")) -> Mardi | D37: =$D35+1 -> 2017-11-14 | P37: =$C37 -> Mardi | Q37: =$D37 -> 2017-11-14 | AG37: =$C37 -> Mardi | AH37: =$D37 -> 2017-11-14 | AX37: =$C37 -> Mardi | AY37: =$D37 -> 2017-11-14 | BM37: =$C37 -> Mardi | BN37: =$D37 -> 2017-11-14 | CD37: =$C37 -> Mardi | CE37: =$D37 -> 2017-11-14 | CG37: 07:42:00 | CM37: =IF($CI37=0,"",$CI37*0.3539) ->  | CQ37: =D37 -> 2017-11-14 | CR37: =$C37 -> Mardi
C39: =PROPER(TEXT(D39,"JJJJ")) -> Mercredi | D39: =$D37+1 -> 2017-11-15 | P39: =$C39 -> Mercredi | Q39: =$D39 -> 2017-11-15 | AG39: =$C39 -> Mercredi | AH39: =$D39 -> 2017-11-15 | AX39: =$C39 -> Mercredi | AY39: =$D39 -> 2017-11-15 | BM39: =$C39 -> Mercredi | BN39: =$D39 -> 2017-11-15 | CD39: =$C39 -> Mercredi | CE39: =$D39 -> 2017-11-15 | CM39: =IF($CI39=0,"",$CI39*0.3539) ->  | CQ39: =D39 -> 2017-11-15 | CR39: =$C39 -> Mercredi
C41: =PROPER(TEXT(D41,"JJJJ")) -> Jeudi | D41: =$D39+1 -> 2017-11-16 | P41: =$C41 -> Jeudi | Q41: =$D41 -> 2017-11-16 | AG41: =$C41 -> Jeudi | AH41: =$D41 -> 2017-11-16 | AX41: =$C41 -> Jeudi | AY41: =$D41 -> 2017-11-16 | BM41: =$C41 -> Jeudi | BN41: =$D41 -> 2017-11-16 | CD41: =$C41 -> Jeudi | CE41: =$D41 -> 2017-11-16 | CM41: =IF($CI41=0,"",$CI41*0.3539) ->  | CQ41: =D41 -> 2017-11-16 | CR41: =$C41 -> Jeudi
C43: =PROPER(TEXT(D43,"JJJJ")) -> Vendredi | D43: =$D41+1 -> 2017-11-17 | P43: =$C43 -> Vendredi | Q43: =$D43 -> 2017-11-17 | AG43: =$C43 -> Vendredi | AH43: =$D43 -> 2017-11-17 | AX43: =$C43 -> Vendredi | AY43: =$D43 -> 2017-11-17 | BM43: =$C43 -> Vendredi | BN43: =$D43 -> 2017-11-17 | CD43: =$C43 -> Vendredi | CE43: =$D43 -> 2017-11-17 | CM43: =IF($CI43=0,"",$CI43*0.3539) ->  | CQ43: =D43 -> 2017-11-17 | CR43: =$C43 -> Vendredi
C45: =PROPER(TEXT(D45,"JJJJ")) -> Samedi | D45: =$D43+1 -> 2017-11-18 | P45: =$C45 -> Samedi | Q45: =$D45 -> 2017-11-18 | AG45: =$C45 -> Samedi | AH45: =$D45 -> 2017-11-18 | AX45: =$C45 -> Samedi | AY45: =$D45 -> 2017-11-18 | BM45: =$C45 -> Samedi | BN45: =$D45 -> 2017-11-18 | CD45: =$C45 -> Samedi | CE45: =$D45 -> 2017-11-18 | CM45: =IF($CI45=0,"",$CI45*0.3539) ->  | CQ45: =D45 -> 2017-11-18 | CR45: =$C45 -> Samedi
C47: =PROPER(TEXT(D47,"JJJJ")) -> Dimanche | D47: =$D45+1 -> 2017-11-19 | P47: =$C47 -> Dimanche | Q47: =$D47 -> 2017-11-19 | AG47: =$C47 -> Dimanche | AH47: =$D47 -> 2017-11-19 | AX47: =$C47 -> Dimanche | AY47: =$D47 -> 2017-11-19 | BM47: =$C47 -> Dimanche | BN47: =$D47 -> 2017-11-19 | CD47: =$C47 -> Dimanche | CE47: =$D47 -> 2017-11-19 | CM47: =IF($CI47=0,"",$CI47*0.3539) ->  | CQ47: =D47 -> 2017-11-19 | CR47: =$C47 -> Dimanche
C49: =PROPER(TEXT(D49,"JJJJ")) -> Lundi | D49: =$D47+1 -> 2017-11-20 | P49: =$C49 -> Lundi | Q49: =$D49 -> 2017-11-20 | AG49: =$C49 -> Lundi | AH49: =$D49 -> 2017-11-20 | AX49: =$C49 -> Lundi | AY49: =$D49 -> 2017-11-20 | BM49: =$C49 -> Lundi | BN49: =$D49 -> 2017-11-20 | CD49: =$C49 -> Lundi | CE49: =$D49 -> 2017-11-20 | CM49: =IF($CI49=0,"",$CI49*0.3539) ->  | CQ49: =D49 -> 2017-11-20 | CR49: =$C49 -> Lundi
C51: =PROPER(TEXT(D51,"JJJJ")) -> Mardi | D51: =$D49+1 -> 2017-11-21 | P51: =$C51 -> Mardi | Q51: =$D51 -> 2017-11-21 | AG51: =$C51 -> Mardi | AH51: =$D51 -> 2017-11-21 | AX51: =$C51 -> Mardi | AY51: =$D51 -> 2017-11-21 | BM51: =$C51 -> Mardi | BN51: =$D51 -> 2017-11-21 | CD51: =$C51 -> Mardi | CE51: =$D51 -> 2017-11-21 | CM51: =IF($CI51=0,"",$CI51*0.3539) ->  | CQ51: =D51 -> 2017-11-21 | CR51: =$C51 -> Mardi
C53: =PROPER(TEXT(D53,"JJJJ")) -> Mercredi | D53: =$D51+1 -> 2017-11-22 | P53: =$C53 -> Mercredi | Q53: =$D53 -> 2017-11-22 | AG53: =$C53 -> Mercredi | AH53: =$D53 -> 2017-11-22 | AX53: =$C53 -> Mercredi | AY53: =$D53 -> 2017-11-22 | BM53: =$C53 -> Mercredi | BN53: =$D53 -> 2017-11-22 | CD53: =$C53 -> Mercredi | CE53: =$D53 -> 2017-11-22 | CM53: =IF($CI53=0,"",$CI53*0.3539) ->  | CQ53: =D53 -> 2017-11-22 | CR53: =$C53 -> Mercredi
C55: =PROPER(TEXT(D55,"JJJJ")) -> Jeudi | D55: =$D53+1 -> 2017-11-23 | P55: =$C55 -> Jeudi | Q55: =$D55 -> 2017-11-23 | AG55: =$C55 -> Jeudi | AH55: =$D55 -> 2017-11-23 | AX55: =$C55 -> Jeudi | AY55: =$D55 -> 2017-11-23 | BM55: =$C55 -> Jeudi | BN55: =$D55 -> 2017-11-23 | CD55: =$C55 -> Jeudi | CE55: =$D55 -> 2017-11-23 | CM55: =IF($CI55=0,"",$CI55*0.3539) ->  | CQ55: =D55 -> 2017-11-23 | CR55: =$C55 -> Jeudi
C57: =PROPER(TEXT(D57,"JJJJ")) -> Vendredi | D57: =$D55+1 -> 2017-11-24 | P57: =$C57 -> Vendredi | Q57: =$D57 -> 2017-11-24 | AG57: =$C57 -> Vendredi | AH57: =$D57 -> 2017-11-24 | AX57: =$C57 -> Vendredi | AY57: =$D57 -> 2017-11-24 | BM57: =$C57 -> Vendredi | BN57: =$D57 -> 2017-11-24 | CD57: =$C57 -> Vendredi | CE57: =$D57 -> 2017-11-24 | CM57: =IF($CI57=0,"",$CI57*0.3539) ->  | CQ57: =D57 -> 2017-11-24 | CR57: =$C57 -> Vendredi
C59: =PROPER(TEXT(D59,"JJJJ")) -> Samedi | D59: =$D57+1 -> 2017-11-25 | P59: =$C59 -> Samedi | Q59: =$D59 -> 2017-11-25 | AG59: =$C59 -> Samedi | AH59: =$D59 -> 2017-11-25 | AX59: =$C59 -> Samedi | AY59: =$D59 -> 2017-11-25 | BM59: =$C59 -> Samedi | BN59: =$D59 -> 2017-11-25 | CD59: =$C59 -> Samedi | CE59: =$D59 -> 2017-11-25 | CM59: =IF($CI59=0,"",$CI59*0.3539) ->  | CQ59: =D59 -> 2017-11-25 | CR59: =$C59 -> Samedi
C61: =PROPER(TEXT(D61,"JJJJ")) -> Dimanche | D61: =$D59+1 -> 2017-11-26 | P61: =$C61 -> Dimanche | Q61: =$D61 -> 2017-11-26 | AG61: =$C61 -> Dimanche | AH61: =$D61 -> 2017-11-26 | AX61: =$C61 -> Dimanche | AY61: =$D61 -> 2017-11-26 | BM61: =$C61 -> Dimanche | BN61: =$D61 -> 2017-11-26 | CD61: =$C61 -> Dimanche | CE61: =$D61 -> 2017-11-26 | CM61: =IF($CI61=0,"",$CI61*0.3539) ->  | CQ61: =D61 -> 2017-11-26 | CR61: =$C61 -> Dimanche
C63: =PROPER(TEXT(D63,"JJJJ")) -> Lundi | D63: =$D61+1 -> 2017-11-27 | P63: =$C63 -> Lundi | Q63: =$D63 -> 2017-11-27 | AG63: =$C63 -> Lundi | AH63: =$D63 -> 2017-11-27 | AX63: =$C63 -> Lundi | AY63: =$D63 -> 2017-11-27 | BM63: =$C63 -> Lundi | BN63: =$D63 -> 2017-11-27 | CD63: =$C63 -> Lundi | CE63: =$D63 -> 2017-11-27 | CM63: =IF($CI63=0,"",$CI63*0.3539) ->  | CQ63: =D63 -> 2017-11-27 | CR63: =$C63 -> Lundi
C65: =PROPER(TEXT(D65,"JJJJ")) -> Mardi | D65: =$D63+1 -> 2017-11-28 | P65: =$C65 -> Mardi | Q65: =$D65 -> 2017-11-28 | AG65: =$C65 -> Mardi | AH65: =$D65 -> 2017-11-28 | AX65: =$C65 -> Mardi | AY65: =$D65 -> 2017-11-28 | BM65: =$C65 -> Mardi | BN65: =$D65 -> 2017-11-28 | CD65: =$C65 -> Mardi | CE65: =$D65 -> 2017-11-28 | CM65: =IF($CI65=0,"",$CI65*0.3539) ->  | CQ65: =D65 -> 2017-11-28 | CR65: =$C65 -> Mardi
C67: =PROPER(TEXT(D67,"JJJJ")) -> Mercredi | D67: =$D65+1 -> 2017-11-29 | P67: =$C67 -> Mercredi | Q67: =$D67 -> 2017-11-29 | AG67: =$C67 -> Mercredi | AH67: =$D67 -> 2017-11-29 | AX67: =$C67 -> Mercredi | AY67: =$D67 -> 2017-11-29 | BM67: =$C67 -> Mercredi | BN67: =$D67 -> 2017-11-29 | CD67: =$C67 -> Mercredi | CE67: =$D67 -> 2017-11-29 | CM67: =IF($CI67=0,"",$CI67*0.3539) ->  | CQ67: =D67 -> 2017-11-29 | CR67: =$C67 -> Mercredi
C69: =PROPER(TEXT(D69,"JJJJ")) -> Jeudi | D69: =$D67+1 -> 2017-11-30 | P69: =$C69 -> Jeudi | Q69: =$D69 -> 2017-11-30 | AG69: =$C69 -> Jeudi | AH69: =$D69 -> 2017-11-30 | AX69: =$C69 -> Jeudi | AY69: =$D69 -> 2017-11-30 | BM69: =$C69 -> Jeudi | BN69: =$D69 -> 2017-11-30 | CD69: =$C69 -> Jeudi | CE69: =$D69 -> 2017-11-30 | CM69: =IF($CI69=0,"",$CI69*0.3539) ->  | CQ69: =D69 -> 2017-11-30 | CR69: =$C69 -> Jeudi
P71: =$C71 -> 0 | Q71: =$D71 -> 00:00:00 | AG71: =$C71 -> 0 | AH71: =$D71 -> 00:00:00 | AX71: =$C71 -> 0 | AY71: =$D71 -> 00:00:00 | BM71: =$C71 -> 0 | BN71: =$D71 -> 00:00:00 | CD71: =$C71 -> 0 | CE71: =$D71 -> 00:00:00 | CM71: =IF($CI71=0,"",$CI71*0.3539) ->  | CQ71: =D71 -> 00:00:00 | CR71: =$C71 -> 0
CW79: Avril | DG79: 0.3539 | DH79: Du 12 Avril au 11 avril | DK79: Solde
CT80: Janvier | CU80: Février | CV80: Mars | CW80: Du 1 au 11 | CX80: Du 12 au 30 | CY80: Mai | CZ80: Juin | DA80: Juillet | DB80: Août | DC80: Septembre | DD80: Octobre | DE80: Novembre | DF80: Décembre | DG80: 11 Avril | DH80: Relevés Compteur | DJ80: Facture | DK80: =DJ88-DJ89 -> 12151.07255
CT81: 0 | CU81: 0 | CV81: 0 | CW81: 0 | CX81: 236.4 | CY81: 333.2 | CZ81: 342.1 | DA81: 410.1 | DB81: 396.9 | DC81: 276.1 | DD81: 177.9 | DE81: 118.7 | DF81: 101.5
CT82: 85.9 | CU82: 150.8 | CV82: 290.3 | CW82: 106.4 | CX82: 234.8 | CY82: 377.2 | CZ82: 417.5 | DA82: 381.1 | DB82: 343.7 | DC82: 333.9 | DD82: 188.5 | DE82: 104.4 | DF82: 81 | DG82: 2013/2014 | DH82: =SUM(CX81:DF81)+SUM(CT82:CW82) -> 3026.3 | DI82: =DH82*$DG$79 -> 1071.00757 | DJ82: 1062
CT83: 98.2 | CU83: 154.1 | CV83: 228.4 | CW83: 119.3 | CX83: 201.9 | CY83: 359.6 | CZ83: 400.9 | DA83: 363.8 | DB83: 317.5 | DC83: 289.7 | DD83: 197.2 | DE83: 99.1 | DF83: 89.7 | DG83: 2014/2015 | DH83: =SUM(CX82:DF82,CT83:CW83) -> 3062.1 | DI83: =DH83*$DG$79 -> 1083.67719 | DJ83: 1094
CT84: 91.6 | CU84: 155.05 | CV84: 249.3 | CW84: 302.6 | DG84: 2015/2016 | DH84: =SUM(CX83:DF83,CT84:CW84) -> 3117.95 | DI84: =DH84*$DG$79 -> 1103.442505
DH87: Total de l'année | DJ87: Amortissement
DG88: 2013 | DH88: =SUM(CT81:DF81) -> 2392.9 | DI88: =DH88*$DG$79 -> 846.84731 | DJ88: 13246.57
DG89: 2014 | DH89: =SUM(CT82:DF82) -> 3095.5 | DI89: =DH89*$DG$79 -> 1095.49745 | DJ89: =DI88:DI100 -> 1095.49745
DG90: 2015 | DH90: =SUM(CT83:DF83) -> 2919.4 | DI90: =DH90*$DG$79 -> 1033.17566
DG91: 2016 | DH91: =SUM(CT84:DF84) -> 798.55 | DI91: =DH91*$DG$79 -> 282.606845

Sheet Mini-Maxi
A1: =Novembre_2017!C5 -> Novembre_2017 | I1: =Novembre_2017!J7 -> 1024
I2: 145 | J2: Mini | M2: Maxi
D3: Pluie Maxi Jour et mois | G3: Températures Mini et Maxi | I3: =I1-940 -> 84 | J3: =INDIRECT($A$1&"!$H7") -> 2017-11-03 | M3: =INDIRECT($A$1&"!$L7") -> 2017-11-08
I4: 3
I5: =I2-I3-I4 -> 58
A6: Jour | B6: Mois | D6: __200 | F6: Vent maxi
D7: __180 | E7: =INDIRECT($A$1&"!$AL7") -> 2017-11-07 | I7: =Novembre_2017!F7 -> 1004
D8: __160 | E8: 132 | I8: 145
A9: =INDIRECT($A$1&"!$BP9") -> 4.318 | B9: =INDIRECT($A$1&"!$BP5") -> 6.818 | D9: __140 | E9: =INDIRECT($A$1&"!$AJ$7") -> 32.4 | I9: =I7-940 -> 64
A10: 200 | B10: 200 | D10: __120 | E10: 2 | I10: 3
A11: =100*(1-(A9/A10)) -> 97.841 | B11: =100*(1-(B9/B10)) -> 96.591 | D11: __100 | E11: =E8-E9-E10 -> 97.6 | I11: =I8-I9-I10 -> 78
A12: =20*A11/100 -> 19.5682 | B12: =20*B11/100 -> 19.3182 | D12: __80
A13: 17 | B13: 28 | D13: __60
A14: =(A10/100)*(1+(2*A10/100))/2 -> 5 | B14: =(B10/100)*(1+(2*B10/100))/2 -> 5 | D14: __40 | I14: 22:00:00
D15: _20 | I15: 00:00:00
A16: =INDIRECT($A$1&"!$BP9") -> 4.318 | I16: =Novembre_2017!$CG$9 -> 07:54:00
A17: =INDIRECT($A$1&"!$BP5") -> 6.818 | D17: =Novembre_2017!BP7 -> 2017-11-04 | I17: =I14-I16 -> 14:06:00
G20: =INDIRECT($A$1&"!$W7") -> -1.5 | H20: =INDIRECT($A$1&"!$AA7") -> 21
G21: =INDIRECT($A$1&"!$W7") -> -1.5 | H21: =INDIRECT($A$1&"!$AA7") -> 1900-01-21
